bitfinex/quotes_SOLUSD_20241126
["timestamp","ask_amount","ask_price","bid_price","bid_amount"]
[1732611951990,31.9317479,234.09,234.02,27.6599479]
[1732611952192,31.9317479,234.09,234.01,15.7554]
[1732611952193,4.2718,234.09,234.03,27.6599479]
[1732611952598,31.9317479,234.09,234.02,27.6599479]
[1732611952918,4.2718,234.09,234.02,27.6599479]
[1732611953207,31.9317479,234.09,234.01,27.6599479]
[1732611953608,27.6599479,234.06,233.99,27.6599479]
[1732611953812,27.6599479,234.07,234.0,27.6599479]
[1732611953991,4.2718,234.09,234.03,27.6599479]
[1732611954194,4.2718,234.09,234.02,27.6599479]
[1732611954606,31.9317479,234.09,234.01,27.6599479]
[1732611954907,27.6599479,234.08,234.0,27.6599479]
[1732611955220,27.6599479,234.14,234.07,27.6599479]
[1732611955417,4.2707,234.15,234.09,27.6599479]
[1732611955713,4.2707,234.15,234.01,4.2733]
[1732611955912,31.9306479,234.15,234.08,27.6599479]
[1732611956214,4.2707,234.15,234.08,27.6599479]
[1732611956809,4.2707,234.15,234.09,27.6599479]
[1732611957405,4.2707,234.15,234.04,4.2726]
[1732611957406,4.2707,234.15,234.1,27.6599479]
[1732611957591,4.2707,234.15,234.09,27.6599479]
[1732611957908,4.2707,234.15,234.08,27.6599479]
[1732611958414,4.2707,234.15,234.09,27.6599479]
[1732611959411,4.2707,234.15,234.07,27.6599479]
[1732611959714,27.6599479,234.14,234.05,27.6599479]
[1732611959900,27.6599479,234.13,234.05,27.6599479]
[1732611960300,27.6599479,234.11,234.03,27.6599479]
[1732611960504,27.6599479,234.07,233.99,27.6599479]
[1732611960691,27.6599479,234.05,233.97,27.6599479]
[1732611961291,4.2724,234.06,234.01,27.6599479]
[1732611961497,4.2717,234.1,234.04,27.6599479]
[1732611962313,31.9316479,234.1,234.02,27.6599479]
[1732611962706,27.6599479,234.06,233.99,27.6599479]
[1732611962895,27.6599479,234.06,234.0,27.6599479]
[1732611963104,27.6599479,234.09,234.01,27.6599479]
[1732611963618,27.6599479,234.07,234.01,27.6599479]
[1732611963917,27.6599479,234.08,234.0,27.6599479]
[1732611964811,27.6599479,234.06,233.98,27.6599479]
[1732611965003,31.9321479,234.07,233.99,27.6599479]
[1732611965306,31.9321479,234.07,233.89,4.2755]
[1732611965307,4.2722,234.07,234.0,27.6599479]
[1732611965518,4.2722,234.07,233.89,14.2755]
[1732611965519,31.9321479,234.07,233.99,27.6599479]
[1732611966014,27.6599479,234.01,233.91,27.6599479]
[1732611966320,17.12162753,233.99,233.91,17.12162753]
[1732611966620,17.12162753,234.03,233.96,17.12162753]
[1732611966805,4.2731,234.02,233.96,17.12162753]
[1732611967117,10.6788,234.11,233.93,4.2747]
[1732611967301,17.12162753,234.1,234.03,17.12162753]
[1732611967616,17.12162753,234.06,233.99,17.12162753]
[1732611967921,17.12162753,234.07,233.99,17.12162753]
[1732611968094,17.12162753,234.09,234.01,17.12162753]
[1732611968290,4.2713,234.12,234.03,17.12162753]
[1732611968599,17.12162753,234.07,233.99,17.12162753]
[1732611968791,17.12162753,234.09,234.01,17.12162753]
[1732611969492,17.12162753,234.07,233.99,17.12162753]
[1732611970304,17.12162753,234.06,233.98,17.12162753]
[1732611970501,4.2725,234.05,233.98,17.12162753]
[1732611971012,17.12162753,234.0,233.94,17.12162753]
[1732611971219,17.12162753,234.03,233.96,17.12162753]
[1732611971926,4.2731,234.02,233.96,17.12162753]
[1732611972113,17.12162753,234.01,233.94,17.12162753]
[1732611972718,4.2731,234.02,233.96,17.12162753]
[1732611972916,4.2731,234.02,233.94,17.12162753]
[1732611972917,17.12162753,234.01,233.94,17.12162753]
[1732611973696,10.6814,234.05,233.95,17.12162753]
[1732611974021,4.272,234.09,234.03,17.12162753]
[1732611974206,4.272,234.09,234.04,17.12162753]
[1732611974402,4.2716,234.11,234.05,17.12162753]
[1732611974915,10.66171815,234.13,234.1,17.12162753]
[1732611975122,21.39142753,234.2,234.12,17.12162753]
[1732611975299,21.39142753,234.2,234.13,17.12162753]
[1732611975699,21.39142753,234.2,234.12,17.12162753]
[1732611976010,17.12162753,234.19,234.12,17.12162753]
[1732611976521,17.12162753,234.19,234.12,27.34547156]
[1732611976522,27.34547156,234.19,234.12,27.34547156]
[1732611977019,4.2698,234.2,234.12,27.34547156]
[1732611977020,31.61527156,234.2,234.12,27.34547156]
[1732611977317,4.2698,234.2,234.13,27.34547156]
[1732611977498,27.34547156,234.21,234.14,27.34547156]
[1732611977699,4.2698,234.2,234.14,27.34547156]
[1732611977893,4.2698,234.2,234.13,27.34547156]
[1732611978094,27.34547156,234.16,234.09,27.34547156]
[1732611978414,27.34547156,234.16,234.07,15.5739]
[1732611978415,27.34547156,234.13,234.07,15.5739]
[1732611978912,27.34547156,234.14,234.07,15.5739]
[1732611979327,27.34547156,234.13,234.07,15.5739]
[1732611980016,31.61617156,234.16,234.08,27.34547156]
[1732611980200,31.61617156,234.16,234.09,27.34547156]
[1732611980398,27.34547156,234.15,234.07,42.91937156]
[1732611980631,27.34547156,234.15,234.08,27.34547156]
[1732611980835,27.34547156,234.14,234.07,15.5739]
[1732611981009,27.34547156,234.12,234.07,15.5739]
[1732611981212,4.2707,234.16,234.07,15.5739]
[1732611981213,4.2718,234.09,234.07,15.5739]
[1732611982029,31.61707156,234.11,234.07,15.5739]
[1732611982207,4.2716,234.11,234.07,15.5739]
[1732611982531,31.61677156,234.12,234.07,15.5739]
[1732611983333,10.6764,234.16,234.07,42.91937156]
[1732611983334,31.61647156,234.14,234.07,42.91937156]
[1732611983509,27.34547156,234.12,234.07,15.5739]
[1732611984034,31.61647156,234.14,234.07,15.5739]
[1732611984508,27.34547156,234.13,234.07,15.5739]
[1732611985137,27.34547156,234.09,234.07,15.5739]
[1732611985429,4.272,234.08,234.07,15.5739]
[1732611986114,31.61747156,234.08,234.07,15.5739]
[1732611986323,4.272,234.08,234.07,15.5739]
[1732611986628,31.61747156,234.08,234.07,15.5739]
[1732611992333,55.39435556,234.08,234.07,15.5739]
[1732611992531,27.34547156,233.93,233.85,27.34547156]
[1732611992838,27.34547156,233.9,233.83,27.34547156]
[1732611993422,27.34547156,233.91,233.84,27.34547156]
[1732611993618,27.34547156,233.93,233.85,27.34547156]
[1732611993822,27.34547156,233.93,233.76,37.34547156]
[1732611993823,27.34547156,233.97,233.9,27.34547156]
[1732611994044,27.34547156,233.94,233.87,27.34547156]
[1732611994337,27.34547156,233.93,233.86,27.34547156]
[1732611994537,12.11487137,234.02,233.8,4.2771]
[1732611994715,27.34547156,233.97,233.9,27.34547156]
[1732611994917,27.34547156,233.94,233.87,27.34547156]
[1732611995315,10.6828,234.02,233.88,27.34547156]
[1732611995316,27.34547156,233.95,233.88,27.34547156]
[1732611995516,27.34547156,233.95,233.8,14.9699]
[1732611995712,31.61997156,233.95,233.88,27.34547156]
[1732611995946,4.2745,233.95,233.89,27.34547156]
[1732611996239,31.61997156,233.95,233.88,27.34547156]
[1732611996627,4.2745,233.95,233.88,27.34547156]
[1732611996824,27.34547156,233.93,233.85,27.34547156]
[1732611997038,4.2745,233.95,233.85,27.34547156]
[1732611997039,27.34547156,233.92,233.85,27.34547156]
[1732611997249,27.34547156,233.94,233.87,27.34547156]
[1732611997416,42.30597156,233.95,233.87,27.34547156]
[1732611997626,4.2745,233.95,233.89,27.34547156]
[1732611997820,4.2745,233.95,233.88,27.34547156]
[1732611998045,27.34547156,233.96,233.89,27.34547156]
[1732611998220,10.0,234.04,233.9,27.34547156]
[1732611998221,27.34547156,233.97,233.9,27.34547156]
[1732611998421,17.12353745,233.98,233.91,17.12353745]
[1732611998645,17.12353745,233.97,233.9,17.12353745]
[1732611998840,4.2742,233.96,233.9,17.12353745]
[1732611999374,4.2742,233.96,233.87,4.2758]
[1732611999375,4.2742,233.96,233.91,17.12353745]
[1732611999728,4.2742,233.96,233.9,17.12353745]
[1732612000241,17.12353745,233.95,233.88,17.12353745]
[1732612000742,17.12353745,233.95,233.87,17.12353745]
[1732612000952,17.12353745,233.9,233.76,10.6945]
[1732612001119,17.12353745,233.88,233.81,17.12353745]
[1732612001430,17.12353745,233.9,233.82,17.12353745]
[1732612001738,16.40269429,233.98,233.76,10.0]
[1732612001955,5.71809429,233.98,233.79,10.0]
[1732612002315,4.2738,233.98,233.79,10.0]
[1732612002536,4.2738,233.98,233.77,0.64137638]
[1732612002743,4.2746,233.94,233.88,17.12353745]
[1732612003044,21.39813745,233.94,233.87,17.12353745]
[1732612003256,17.12353745,233.93,233.86,17.12353745]
[1732612003446,17.12353745,233.92,233.85,17.12353745]
[1732612003757,4.2746,233.94,233.83,17.12353745]
[1732612003758,17.12353745,233.9,233.83,17.12353745]
[1732612003960,17.12353745,233.86,233.79,17.12353745]
[1732612004255,17.12353745,233.86,233.67,20.0]
[1732612004256,17.12353745,233.84,233.77,17.12353745]
[1732612004634,17.12353745,233.84,233.78,17.12353745]
[1732612004835,21.39983745,233.85,233.79,17.12353745]
[1732612005050,4.2763,233.85,233.79,17.12353745]
[1732612005434,21.39983745,233.85,233.79,17.12353745]
[1732612005633,17.12353745,233.84,233.77,17.12353745]
[1732612006046,21.373,233.94,233.79,17.12353745]
[1732612006047,17.12353745,233.86,233.79,17.12353745]
[1732612006648,14.9636,233.9,233.76,17.12353745]
[1732612006884,14.9636,233.9,233.79,17.12353745]
[1732612006885,17.12353745,233.86,233.79,17.12353745]
[1732612007436,17.12353745,233.85,233.77,17.12353745]
[1732612007938,4.2766,233.83,233.77,17.12353745]
[1732612008142,4.2766,233.83,233.76,17.12353745]
[1732612008545,17.12353745,233.84,233.77,17.12353745]
[1732612008863,17.12353745,233.86,233.78,17.12353745]
[1732612009360,17.12353745,233.86,233.74,4.2781]
[1732612009361,17.12353745,233.86,233.79,17.12353745]
[1732612010266,4.2762,233.85,233.79,17.12353745]
[1732612010433,21.39973745,233.85,233.77,17.12353745]
[1732612010635,17.12353745,233.84,233.77,17.12353745]
[1732612010854,17.12353745,233.83,233.75,17.12353745]
[1732612011062,17.12353745,233.8,233.73,17.12353745]
[1732612011263,14.9668,233.85,233.65,4.2799]
[1732612011264,17.12353745,233.79,233.65,4.2799]
[1732612011563,17.12353745,233.81,233.74,17.12353745]
[1732612011936,17.12353745,233.81,233.65,4.2799]
[1732612012141,4.2775,233.78,233.71,17.12353745]
[1732612012445,4.2775,233.78,233.72,17.12353745]
[1732612012645,4.2775,233.78,233.71,17.12353745]
[1732612012954,21.40103745,233.78,233.71,17.12353745]
[1732612013156,17.12353745,233.77,233.7,17.12353745]
[1732612013464,4.2775,233.78,233.71,17.12353745]
[1732612013662,17.12353745,233.77,233.7,17.12353745]
[1732612014054,4.2778,233.76,233.7,17.12353745]
[1732612014255,4.2778,233.76,233.58,11.44384104]
[1732612014256,21.40133745,233.76,233.68,17.12353745]
[1732612015465,17.12353745,233.74,233.67,17.12353745]
[1732612016552,4.2778,233.76,233.7,17.12353745]
[1732612017148,4.2778,233.76,233.65,4.2798]
[1732612017149,4.2776,233.78,233.72,17.12353745]
[1732612017467,4.2776,233.78,233.73,17.12353745]
[1732612017670,4.2776,233.78,233.72,17.12353745]
[1732612018568,4.2776,233.78,233.73,17.12353745]
[1732612018870,17.12353745,233.8,233.73,17.12353745]
[1732612019086,4.2772,233.8,233.74,17.12353745]
[1732612019366,5.55228541,233.84,233.64,17.12353745]
[1732612019367,4.2769,233.82,233.77,17.12353745]
[1732612019570,4.2766,233.83,233.78,17.12353745]
[1732612019864,5.55228541,233.84,233.82,17.12353745]
[1732612020062,5.55228541,233.84,233.83,17.12353745]
[1732612020839,4.2744,233.95,233.83,17.12353745]
[1732612021041,21.39793745,233.95,233.88,17.12353745]
[1732612021347,17.12353745,233.91,233.76,17.12353745]
[1732612021546,17.12353745,233.91,233.58,21.67412087]
[1732612021547,10.0,233.95,233.71,4.2788]
[1732612021766,4.64690588,233.96,233.73,20.0]
[1732612021975,14.9591,233.97,233.73,20.0]
[1732612022276,20.0,233.94,233.73,20.0]
[1732612022449,23.776884,233.93,233.73,20.0]
[1732612022650,47.41673632,233.9,233.83,27.41673632]
[1732612022958,20.0,233.9,233.85,27.41673632]
[1732612023269,10.6851,233.97,233.79,4.2773]
[1732612023270,27.41673632,233.94,233.87,27.41673632]
[1732612023568,27.41673632,233.95,233.88,27.41673632]
[1732612023749,27.41673632,233.94,233.87,27.41673632]
[1732612023955,27.41673632,233.95,233.88,27.41673632]
[1732612024156,4.2742,233.96,233.79,4.2773]
[1732612024356,4.2742,233.96,233.9,27.41673632]
[1732612024556,4.2742,233.96,233.89,27.41673632]
[1732612024557,31.69093632,233.96,233.89,27.41673632]
[1732612024968,27.41673632,233.93,233.86,27.41673632]
[1732612025145,27.41673632,233.9,233.82,27.41673632]
[1732612025351,27.41673632,233.89,233.82,27.41673632]
[1732612026370,27.41673632,233.93,233.86,27.41673632]
[1732612026670,27.41673632,233.95,233.88,27.41673632]
[1732612026880,31.69133632,233.94,233.87,27.41673632]
[1732612027065,27.41673632,233.92,233.85,27.41673632]
[1732612027254,27.41673632,233.91,233.84,27.41673632]
[1732612027652,27.41673632,233.93,233.86,27.41673632]
[1732612027850,27.41673632,233.92,233.85,27.41673632]
[1732612028050,4.2746,233.94,233.9,27.41673632]
[1732612028257,4.2746,233.94,233.91,27.41673632]
[1732612028560,27.41673632,234.0,233.93,27.41673632]
[1732612028760,27.41673632,233.99,233.92,27.41673632]
[1732612029071,27.41673632,233.99,233.91,27.41673632]
[1732612029281,27.41673632,233.96,233.89,27.41673632]
[1732612029582,27.41673632,233.92,233.85,27.41673632]
[1732612029759,27.41673632,233.94,233.87,27.41673632]
[1732612030085,27.41673632,233.93,233.86,27.41673632]
[1732612030262,27.41673632,234.0,233.87,27.41673632]
[1732612030263,27.41673632,233.94,233.87,27.41673632]
[1732612030465,27.41673632,233.98,233.91,27.41673632]
[1732612030674,5.66100639,234.01,233.95,27.41673632]
[1732612030884,4.2733,234.01,233.95,27.41673632]
[1732612031067,14.9566,234.01,233.8,14.9699]
[1732612031576,14.9566,234.01,233.8,4.2771]
[1732612031776,14.9566,234.01,233.76,10.6945]
[1732612031777,10.0,234.0,233.78,4.2774]
[1732612031956,10.0,233.99,233.78,4.2774]
[1732612032158,27.41673632,233.92,233.85,27.41673632]
[1732612032364,27.41673632,233.91,233.84,27.41673632]
[1732612032575,20.0,233.96,233.78,4.2774]
[1732612032576,27.41673632,233.92,233.85,27.41673632]
[1732612032765,27.41673632,233.89,233.82,27.41673632]
[1732612033081,27.41673632,233.89,233.7,10.0]
[1732612033082,27.41673632,233.87,233.8,27.41673632]
[1732612033270,27.41673632,233.89,233.82,27.41673632]
[1732612033472,27.41673632,233.9,233.83,27.41673632]
[1732612033786,27.41673632,233.89,233.82,27.41673632]
[1732612034081,27.41673632,233.9,233.83,27.41673632]
[1732612034280,27.41673632,233.89,233.82,27.41673632]
[1732612034581,27.41673632,233.84,233.77,27.41673632]
[1732612035091,4.2766,233.83,233.77,27.41673632]
[1732612035582,4.2766,233.83,233.78,27.41673632]
[1732612035954,4.2766,233.83,233.79,27.41673632]
[1732612036273,4.2758,233.87,233.82,27.41673632]
[1732612036456,31.69253632,233.87,233.8,27.41673632]
[1732612036657,4.2758,233.87,233.82,27.41673632]
[1732612036864,4.2758,233.87,233.81,27.41673632]
[1732612037083,4.2758,233.87,233.83,27.41673632]
[1732612037280,4.2756,233.89,233.83,27.41673632]
[1732612037457,27.41673632,233.87,233.79,27.41673632]
[1732612037655,27.41673632,233.88,233.8,27.41673632]
[1732612038588,27.41673632,233.86,233.78,27.41673632]
[1732612038892,27.41673632,233.86,233.73,22.1311]
[1732612038893,44.06673632,233.96,233.85,27.41673632]
[1732612039090,4.2744,233.95,233.78,4.2775]
[1732612039383,4.2744,233.95,233.79,0.6413342]
[1732612039562,4.2744,233.95,233.78,4.2775]
[1732612039982,4.2744,233.95,233.78,14.9711]
[1732612040282,31.69113632,233.95,233.87,27.41673632]
[1732612040483,27.41673632,233.94,233.86,27.41673632]
[1732612040684,27.41673632,233.94,233.87,27.41673632]
[1732612041206,20.0,233.91,233.85,27.41673632]
[1732612041565,27.41673632,233.89,233.82,27.41673632]
[1732612041891,27.41673632,233.9,233.82,27.41673632]
[1732612042263,27.41673632,233.9,233.83,27.41673632]
[1732612042487,27.41673632,233.87,233.79,27.41673632]
[1732612042686,27.41673632,233.86,233.79,27.41673632]
[1732612042889,27.41673632,233.85,233.78,27.41673632]
[1732612043078,27.41673632,233.86,233.79,27.41673632]
[1732612043389,27.41673632,233.9,233.83,27.41673632]
[1732612043775,27.41673632,233.89,233.82,27.41673632]
[1732612044481,4.2756,233.88,233.81,27.41673632]
[1732612044679,27.41673632,233.86,233.79,27.41673632]
[1732612045091,27.41673632,233.86,233.74,4.278]
[1732612045092,42.38153632,233.88,233.81,27.41673632]
[1732612045284,4.2756,233.88,233.82,27.41673632]
[1732612045587,31.69233632,233.88,233.81,27.41673632]
[1732612045897,31.69233632,233.88,233.8,27.41673632]
[1732612045898,27.41673632,233.87,233.8,27.41673632]
[1732612046470,4.276,233.86,233.79,27.41673632]
[1732612046780,14.9661,233.86,233.8,27.41673632]
[1732612047172,4.276,233.86,233.81,27.41673632]
[1732612047775,4.276,233.86,233.82,27.41673632]
[1732612048187,4.2753,233.9,233.85,27.41673632]
[1732612048391,27.41673632,233.98,233.89,27.41673632]
[1732612048604,6.3142,233.99,233.89,27.41673632]
[1732612048605,6.3142,233.99,233.89,4.2754]
[1732612048793,27.3146,234.02,233.89,4.2754]
[1732612048971,4.2733,234.01,233.85,4.2762]
[1732612049295,4.2733,234.01,233.79,16.1381]
[1732612049296,4.2733,234.01,233.79,22.1414]
[1732612049797,14.9566,234.01,233.8,4.2769]
[1732612049975,27.41673632,233.96,233.89,27.41673632]
[1732612050177,27.41673632,233.96,233.9,27.41673632]
[1732612050384,27.41673632,234.0,233.92,27.41673632]
[1732612050582,31.69033632,233.99,233.92,27.41673632]
[1732612050882,27.41673632,233.98,233.91,27.41673632]
[1732612051478,27.41673632,233.98,233.9,27.41673632]
[1732612051695,31.69033632,233.99,233.92,27.41673632]
[1732612051924,31.69033632,233.99,233.91,27.41673632]
[1732612051925,27.41673632,233.98,233.91,27.41673632]
[1732612052085,27.41673632,233.98,233.9,27.41673632]
[1732612052596,20.0,233.93,233.87,27.41673632]
[1732612052807,20.0,233.91,233.85,27.41673632]
[1732612053095,20.0,233.91,233.84,27.41673632]
[1732612053301,27.41673632,233.88,233.81,27.41673632]
[1732612053604,27.41673632,233.87,233.8,27.41673632]
[1732612053775,27.41673632,233.89,233.81,27.41673632]
[1732612053972,27.41673632,233.89,233.82,27.41673632]
[1732612054405,27.41673632,233.89,233.68,1.42697977]
[1732612054406,27.41673632,233.85,233.69,14.2791]
[1732612054698,27.41673632,233.86,233.79,27.41673632]
[1732612055090,27.41673632,233.88,233.8,27.41673632]
[1732612055490,27.41673632,233.89,233.81,27.41673632]
[1732612056007,27.41673632,233.87,233.8,27.41673632]
[1732612056214,4.276,233.86,233.8,27.41673632]
[1732612056804,27.41673632,233.85,233.78,27.41673632]
[1732612057104,27.41673632,233.83,233.76,27.41673632]
[1732612057300,27.41673632,233.85,233.77,27.41673632]
[1732612057475,42.38283632,233.86,233.78,27.41673632]
[1732612058891,42.38283632,233.86,233.79,27.41673632]
[1732612061091,42.38283632,233.86,233.78,27.41673632]
[1732612061285,27.41673632,233.85,233.78,27.41673632]
[1732612061604,27.41673632,233.85,233.77,27.41673632]
[1732612061804,27.41673632,233.84,233.76,27.41673632]
[1732612061977,27.41673632,233.82,233.73,27.41673632]
[1732612062406,27.41673632,233.8,233.73,27.41673632]
[1732612062701,27.41673632,233.82,233.74,27.41673632]
[1732612062905,4.2767,233.82,233.75,27.41673632]
[1732612063094,4.2767,233.82,233.79,27.41673632]
[1732612063401,4.2767,233.82,233.78,27.41673632]
[1732612063906,4.2767,233.82,233.77,27.41673632]
[1732612064415,4.2764,233.84,233.78,17.14228183]
[1732612064795,4.2764,233.84,233.82,17.14228183]
[1732612064993,4.2764,233.84,233.81,17.14228183]
[1732612065310,17.14228183,233.89,233.82,17.14228183]
[1732612065485,4.2756,233.88,233.83,17.14228183]
[1732612066515,17.0397,233.9,233.83,17.14228183]
[1732612066516,4.2755,233.89,233.83,17.14228183]
[1732612067015,32.10648183,233.89,233.81,17.14228183]
[1732612067206,32.10648183,233.89,233.82,17.14228183]
[1732612067413,32.10648183,233.89,233.81,17.14228183]
[1732612067986,20.0,233.86,233.81,17.14228183]
[1732612068206,20.0,233.86,233.8,17.14228183]
[1732612068415,4.2755,233.89,233.85,17.14228183]
[1732612068615,4.2747,233.93,233.88,17.14228183]
[1732612068792,32.42828183,233.98,233.91,17.14228183]
[1732612068994,4.2748,233.93,233.79,10.0]
[1732612069196,14.94549239,233.92,233.79,20.0]
[1732612069413,14.94549239,233.92,233.76,68.04388183]
[1732612069414,14.94549239,233.92,233.86,17.14228183]
[1732612069602,17.14228183,233.89,233.81,17.14228183]
[1732612069916,17.14228183,233.88,233.8,17.14228183]
[1732612070086,4.2758,233.87,233.8,17.14228183]
[1732612070609,4.2758,233.87,233.81,17.14228183]
[1732612071115,17.14228183,233.88,233.81,17.14228183]
[1732612071412,17.14228183,233.86,233.78,17.14228183]
[1732612071941,17.14228183,233.88,233.8,17.14228183]
[1732612072507,17.14228183,233.88,233.76,15.9291]
[1732612072508,17.14228183,233.87,233.79,17.14228183]
[1732612073015,6.2082,233.9,233.8,17.14228183]
[1732612073016,17.14228183,233.88,233.8,17.14228183]
[1732612073217,4.2758,233.87,233.8,17.14228183]
[1732612076092,4.2758,233.87,233.82,17.14228183]
[1732612076298,24.2758,233.87,233.82,17.14228183]
[1732612076506,24.2758,233.87,233.8,17.14228183]
[1732612078226,17.14228183,233.86,233.78,17.14228183]
[1732612078417,34.9654,233.87,233.8,17.14228183]
[1732612078613,4.2758,233.87,233.81,17.14228183]
[1732612079311,4.2758,233.87,233.82,17.14228183]
[1732612079830,4.2758,233.87,233.8,17.14228183]
[1732612080006,41.41808183,233.87,233.8,17.14228183]
[1732612081003,17.14228183,233.84,233.76,33.07138183]
[1732612081421,17.14228183,233.85,233.77,17.14228183]
[1732612081720,4.276,233.86,233.82,17.14228183]
[1732612081954,21.41828183,233.86,233.78,17.14228183]
[1732612082224,21.41828183,233.86,233.79,17.14228183]
[1732612082528,32.10838183,233.86,233.79,17.14228183]
[1732612083531,17.14228183,233.82,233.75,17.14228183]
[1732612083709,17.14228183,233.79,233.71,17.14228183]
[1732612083905,17.14228183,233.76,233.59,4.281]
[1732612084117,17.14228183,233.72,233.65,17.14228183]
[1732612084305,17.14228183,233.7,233.63,17.14228183]
[1732612084636,10.0,233.78,233.61,17.14228183]
[1732612084637,17.14228183,233.68,233.61,17.14228183]
[1732612084929,17.14228183,233.68,233.5,52.31280247]
[1732612084930,17.14228183,233.66,233.59,17.14228183]
[1732612085112,20.0,233.73,233.63,17.14228183]
[1732612085309,20.0,233.73,233.53,4.2819]
[1732612085310,17.14228183,233.67,233.53,4.2819]
[1732612085638,4.2797,233.66,233.6,17.14228183]
[1732612085846,21.42198183,233.66,233.59,17.14228183]
[1732612086137,17.14228183,233.62,233.55,17.14228183]
[1732612086318,17.14228183,233.63,233.56,17.14228183]
[1732612086829,17.14228183,233.64,233.51,4.2824]
[1732612087015,17.14228183,233.67,233.6,17.14228183]
[1732612087225,4.2789,233.7,233.59,17.14228183]
[1732612087226,17.14228183,233.66,233.59,17.14228183]
[1732612087420,17.14228183,233.68,233.61,17.14228183]
[1732612087622,20.0,233.68,233.64,17.14228183]
[1732612087812,20.0,233.68,233.53,4.282]
[1732612088020,21.42118183,233.7,233.63,17.14228183]
[1732612088228,4.2789,233.7,233.64,17.14228183]
[1732612088441,4.2786,233.72,233.66,17.14228183]
[1732612088735,4.2786,233.72,233.67,17.14228183]
[1732612088942,32.11238183,233.8,233.71,17.14228183]
[1732612089116,21.41938183,233.8,233.73,17.14228183]
[1732612089310,4.2771,233.8,233.65,10.0]
[1732612089520,17.14228183,233.84,233.77,17.14228183]
[1732612089720,17.14228183,233.83,233.76,17.14228183]
[1732612089935,17.14228183,233.81,233.73,17.14228183]
[1732612090140,17.14228183,233.84,233.77,17.14228183]
[1732612090348,14.9649,233.88,233.77,17.14228183]
[1732612090349,17.14228183,233.85,233.77,17.14228183]
[1732612090516,17.14228183,233.85,233.66,10.0]
[1732612090517,4.2764,233.84,233.78,17.14228183]
[1732612090840,4.2756,233.88,233.74,4.2782]
[1732612091213,4.2756,233.88,233.68,4.2793]
[1732612091435,4.2756,233.88,233.68,24.9776]
[1732612091635,4.2756,233.88,233.68,14.9776]
[1732612092016,17.14228183,233.85,233.78,17.14228183]
[1732612092341,27.43375818,233.82,233.75,27.43375818]
[1732612092512,4.2769,233.81,233.75,27.43375818]
[1732612092716,31.71065818,233.81,233.74,27.43375818]
[1732612092935,27.43375818,233.79,233.72,27.43375818]
[1732612093525,31.71065818,233.81,233.74,27.43375818]
[1732612093731,31.71065818,233.81,233.73,27.43375818]
[1732612093925,4.2766,233.83,233.78,27.43375818]
[1732612094143,4.2766,233.83,233.77,27.43375818]
[1732612095025,4.2763,233.85,233.8,27.43375818]
[1732612095226,4.2763,233.85,233.81,27.43375818]
[1732612095443,31.71005818,233.85,233.77,27.43375818]
[1732612095640,27.43375818,233.83,233.76,27.43375818]
[1732612095847,27.43375818,233.83,233.68,14.9776]
[1732612095848,27.43375818,233.82,233.74,27.43375818]
[1732612096220,27.43375818,233.82,233.75,27.43375818]
[1732612096440,27.43375818,233.78,233.68,4.2793]
[1732612096644,27.43375818,233.81,233.73,27.43375818]
[1732612096823,27.43375818,233.8,233.73,27.43375818]
[1732612097023,27.43375818,233.82,233.74,27.43375818]
[1732612097216,27.43375818,233.83,233.75,27.43375818]
[1732612097446,4.2762,233.85,233.79,27.43375818]
[1732612097645,10.6889,233.89,233.83,27.43375818]
[1732612097852,10.6889,233.89,233.69,10.0]
[1732612097853,4.2756,233.89,233.84,27.43375818]
[1732612098055,27.43375818,233.94,233.86,27.43375818]
[1732612098223,12.07522222,233.97,233.84,27.43375818]
[1732612098423,17.01101699,233.97,233.69,10.0]
[1732612098749,10.0,233.94,233.67,10.0]
[1732612098922,4.93579477,233.93,233.69,20.0]
[1732612099437,27.43375818,233.85,233.78,27.43375818]
[1732612099939,4.2764,233.84,233.77,27.43375818]
[1732612100440,27.43375818,233.83,233.76,27.43375818]
[1732612100624,31.71015818,233.84,233.7,4.2789]
[1732612100831,31.71015818,233.84,233.77,27.43375818]
[1732612101035,27.43375818,233.83,233.76,27.43375818]
[1732612101436,31.71015818,233.84,233.77,27.43375818]
[1732612101616,4.93579477,233.93,233.83,27.43375818]
[1732612101829,38.12055818,233.94,233.87,27.43375818]
[1732612102145,4.2746,233.94,233.88,27.43375818]
[1732612102332,4.2746,233.94,233.76,37.43375818]
[1732612102333,4.2746,233.94,233.87,27.43375818]
[1732612102538,4.2746,233.94,233.89,27.43375818]
[1732612102944,4.2742,233.96,233.89,27.43375818]
[1732612103250,4.2742,233.96,233.9,27.43375818]
[1732612103619,4.2739,233.98,233.95,27.43375818]
[1732612103820,5.54772526,234.04,233.97,27.43375818]